[Event "Titled Tuesday Blitz June 20 Early 2023"]
[White "Xavier_mompel"]
[Black "Ismagilov, Damir"]
[BlackFideId "34199982"]
[WhiteElo "2228"]
[BlackElo "2104"]
[Result "0-1"]
[Round "3"]
[TimeControl "180+2"]
[Date "2023.06.20"]
[WhiteClock "0:00:00"]
[BlackClock "0:00:08"]
[Board "184"]

1. e4 {[%clk 0:03:00]}  g6 {[%clk 0:02:58]} 2. d4 {[%clk 0:02:59]}  Bg7 {[%clk 0:02:59]} 3. Nc3 {[%clk 0:02:59]}  d6 {[%clk 0:02:59]} 4. Be3 {[%clk 0:03:00]}  Nf6 {[%clk 0:02:55]} 5. f3 {[%clk 0:02:59]}  O-O {[%clk 0:02:55]} 6. Qd2 {[%clk 0:03:00]}  e5 {[%clk 0:02:55]} 7. O-O-O {[%clk 0:02:58]}  exd4 {[%clk 0:02:54]} 8. Bxd4 {[%clk 0:02:59]}  Nc6 {[%clk 0:02:55]} 9. Be3 {[%clk 0:02:58]}  Be6 {[%clk 0:02:55]} 10. g4 {[%clk 0:02:55]}  Ne5 {[%clk 0:02:52]} 11. h4 {[%clk 0:02:51]}  h5 {[%clk 0:02:50]} 12. g5 {[%clk 0:02:47]}  Nfd7 {[%clk 0:02:46]} 13. Be2 {[%clk 0:02:46]}  a6 {[%clk 0:02:44]} 14. f4 {[%clk 0:02:43]}  Ng4 {[%clk 0:02:38]} 15. Bxg4 {[%clk 0:02:43]}  Bxg4 {[%clk 0:02:38]} 16. Re1 {[%clk 0:02:35]}  b5 {[%clk 0:02:30]} 17. Nge2 {[%clk 0:02:32]}  b4 {[%clk 0:02:24]} 18. Nd5 {[%clk 0:02:31]}  a5 {[%clk 0:02:24]} 19. Bd4 {[%clk 0:02:01]}  c5 {[%clk 0:02:01]} 20. Bxg7 {[%clk 0:02:00]}  Kxg7 {[%clk 0:02:02]} 21. Ng3 {[%clk 0:01:49]}  Re8 {[%clk 0:01:56]} 22. f5 {[%clk 0:01:45]}  Ne5 {[%clk 0:01:52]} 23. Qf4 {[%clk 0:01:17]}  Ra7 {[%clk 0:01:16]} 24. Nf6 {[%clk 0:01:02]}  Rf8 {[%clk 0:01:12]} 25. Nxg4 {[%clk 0:01:00]}  Nxg4 {[%clk 0:01:13]} 26. Rd1 {[%clk 0:00:58]}  Rd7 {[%clk 0:01:08]} 27. Rhf1 {[%clk 0:00:50]}  Re8 {[%clk 0:00:44]} 28. f6+ {[%clk 0:00:21]}  Kg8 {[%clk 0:00:38]} 29. Nxh5 {[%clk 0:00:17]}  gxh5 {[%clk 0:00:39]} 30. g6 {[%clk 0:00:17]}  Qxf6 {[%clk 0:00:28]} 31. Qxf6 {[%clk 0:00:12]}  Nxf6 {[%clk 0:00:29]} 32. Rxf6 {[%clk 0:00:12]}  Rxe4 {[%clk 0:00:29]} 33. gxf7+ {[%clk 0:00:11]}  Rxf7 {[%clk 0:00:29]} 34. Rfxd6 {[%clk 0:00:04]}  Rxh4 {[%clk 0:00:27]} 35. R6d5 {[%clk 0:00:04]}  Rc7 {[%clk 0:00:20]} 36. Rf5 {[%clk 0:00:04]}  a4 {[%clk 0:00:17]} 37. Rd6 {[%clk 0:00:02]}  c4 {[%clk 0:00:10]} 38. Rg5+ {[%clk 0:00:02]}  Kh7 {[%clk 0:00:09]} 39. Rf6 {[%clk 0:00:01]}  c3 {[%clk 0:00:08]} 40. bxc3 {[%clk 0:00:02]}  bxc3 {[%clk 0:00:09]} 41. Kd1 {[%clk 0:00:00]}  Re7 {[%clk 0:00:08]} 0-1


[Site "https://www.chess.com"]

[Event "Titled Tuesday Blitz June 20 Early 2023"]
[White "Urbina Perez, Juan Antonio"]
[Black "le-castor-faineant"]
[WhiteFideId "2217368"]
[WhiteElo "2197"]
[BlackElo "2150"]
[Result "1-0"]
[Round "3"]
[TimeControl "180+2"]
[Date "2023.06.20"]
[WhiteClock "0:01:02"]
[BlackClock "0:00:03"]
[Board "186"]

1. Nf3 {[%clk 0:03:00]}  Nf6 {[%clk 0:02:54]} 2. e3 {[%clk 0:03:01]}  g6 {[%clk 0:02:54]} 3. b3 {[%clk 0:03:00]}  Bg7 {[%clk 0:02:55]} 4. Bb2 {[%clk 0:03:01]}  d6 {[%clk 0:02:56]} 5. Qc1 {[%clk 0:03:01]}  O-O {[%clk 0:02:56]} 6. c4 {[%clk 0:03:01]}  c5 {[%clk 0:02:56]} 7. Nc3 {[%clk 0:03:00]}  Nc6 {[%clk 0:02:56]} 8. Bd3 {[%clk 0:02:58]}  Bg4 {[%clk 0:02:53]} 9. a3 {[%clk 0:02:53]}  Bxf3 {[%clk 0:02:46]} 10. gxf3 {[%clk 0:02:54]}  e6 {[%clk 0:02:47]} 11. h4 {[%clk 0:02:51]}  d5 {[%clk 0:02:43]} 12. Qc2 {[%clk 0:02:43]}  d4 {[%clk 0:02:41]} 13. Ne4 {[%clk 0:02:42]}  dxe3 {[%clk 0:02:26]} 14. fxe3 {[%clk 0:02:37]}  Nxe4 {[%clk 0:01:49]} 15. Bxe4 {[%clk 0:02:26]}  f5 {[%clk 0:01:33]} 16. Bxc6 {[%clk 0:02:24]}  bxc6 {[%clk 0:01:34]} 17. Bxg7 {[%clk 0:02:20]}  Kxg7 {[%clk 0:01:35]} 18. h5 {[%clk 0:02:20]}  Qf6 {[%clk 0:01:33]} 19. Ke2 {[%clk 0:02:13]}  f4 {[%clk 0:01:26]} 20. Qe4 {[%clk 0:02:02]}  g5 {[%clk 0:01:17]} 21. h6+ {[%clk 0:02:01]}  Kh8 {[%clk 0:01:16]} 22. Rag1 {[%clk 0:01:58]}  fxe3 {[%clk 0:01:12]} 23. Qxe3 {[%clk 0:01:59]}  Rg8 {[%clk 0:00:43]} 24. Rh5 {[%clk 0:01:59]}  g4 {[%clk 0:00:34]} 25. fxg4 {[%clk 0:01:54]}  Raf8 {[%clk 0:00:27]} 26. g5 {[%clk 0:01:49]}  Qd4 {[%clk 0:00:20]} 27. Rh2 {[%clk 0:01:37]}  Rf5 {[%clk 0:00:11]} 28. Qxd4+ {[%clk 0:01:34]}  cxd4 {[%clk 0:00:12]} 29. Rf2 {[%clk 0:01:34]}  Rfxg5 {[%clk 0:00:10]} 30. Rxg5 {[%clk 0:01:29]}  Rxg5 {[%clk 0:00:11]} 31. Rf8+ {[%clk 0:01:28]}  Rg8 {[%clk 0:00:12]} 32. Rf6 {[%clk 0:01:14]}  Rg6 {[%clk 0:00:11]} 33. Rf8+ {[%clk 0:01:14]}  Rg8 {[%clk 0:00:11]} 34. Rf7 {[%clk 0:01:14]}  Rg6 {[%clk 0:00:12]} 35. Rxa7 {[%clk 0:01:12]}  Rxh6 {[%clk 0:00:12]} 36. Rc7 {[%clk 0:01:12]}  e5 {[%clk 0:00:12]} 37. a4 {[%clk 0:01:11]}  e4 {[%clk 0:00:05]} 38. Re7 {[%clk 0:01:08]}  Rh2+ {[%clk 0:00:04]} 39. Kd1 {[%clk 0:01:07]}  Rh3 {[%clk 0:00:03]} 40. Kc2 {[%clk 0:01:06]}  d3+ {[%clk 0:00:02]} 41. Kc3 {[%clk 0:01:06]}  e3 {[%clk 0:00:03]} 42. dxe3 {[%clk 0:01:04]}  Rh2 {[%clk 0:00:02]} 43. Kxd3 {[%clk 0:01:04]}  Rb2 {[%clk 0:00:02]} 44. Kc3 {[%clk 0:01:02]}  h5 {[%clk 0:00:03]} 1-0


[Site "https://www.chess.com"]

[Event "Titled Tuesday Blitz June 20 Early 2023"]
[White "Cardenas Carbajal, Nilson"]
[Black "Mattheii"]
[WhiteFideId "8401128"]
[WhiteElo "1972"]
[BlackElo "2470"]
[Result "0-1"]
[Round "3"]
[TimeControl "180+2"]
[Date "2023.06.20"]
[WhiteClock "0:00:00"]
[BlackClock "0:00:09"]
[Board "187"]

1. e4 {[%clk 0:03:00]}  c5 {[%clk 0:02:59]} 2. d4 {[%clk 0:02:59]}  cxd4 {[%clk 0:02:56]} 3. c3 {[%clk 0:02:59]}  Nf6 {[%clk 0:02:56]} 4. e5 {[%clk 0:02:59]}  Nd5 {[%clk 0:02:56]} 5. Nf3 {[%clk 0:02:58]}  Nc6 {[%clk 0:02:50]} 6. cxd4 {[%clk 0:02:58]}  d6 {[%clk 0:02:50]} 7. Bc4 {[%clk 0:02:58]}  dxe5 {[%clk 0:02:50]} 8. dxe5 {[%clk 0:02:52]}  Be6 {[%clk 0:02:50]} 9. O-O {[%clk 0:02:44]}  g6 {[%clk 0:02:51]} 10. Qe2 {[%clk 0:02:26]}  Bg7 {[%clk 0:02:43]} 11. Rd1 {[%clk 0:02:17]}  Qa5 {[%clk 0:02:42]} 12. Bd2 {[%clk 0:02:11]}  Qc7 {[%clk 0:02:41]} 13. Bxd5 {[%clk 0:01:42]}  Bxd5 {[%clk 0:02:41]} 14. Nc3 {[%clk 0:01:42]}  Bxf3 {[%clk 0:02:20]} 15. Qxf3 {[%clk 0:01:41]}  Nxe5 {[%clk 0:01:22]} 16. Qg3 {[%clk 0:01:26]}  Qc4 {[%clk 0:00:48]} 17. Bh6 {[%clk 0:01:00]}  Bxh6 {[%clk 0:00:28]} 18. Qxe5 {[%clk 0:00:58]}  f6 {[%clk 0:00:29]} 19. Qe1 {[%clk 0:00:31]}  e5 {[%clk 0:00:19]} 20. Nd5 {[%clk 0:00:27]}  O-O {[%clk 0:00:18]} 21. Rac1 {[%clk 0:00:21]}  Bxc1 {[%clk 0:00:17]} 22. Ne7+ {[%clk 0:00:19]}  Kf7 {[%clk 0:00:12]} 23. Rd7 {[%clk 0:00:12]}  Rfd8 {[%clk 0:00:10]} 24. Qd1 {[%clk 0:00:07]}  Rxd7 {[%clk 0:00:09]} 25. Qxd7 {[%clk 0:00:00]}  Qe6 {[%clk 0:00:09]} 0-1


[Site "https://www.chess.com"]

[Event "Titled Tuesday Blitz June 20 Early 2023"]
[White "Christiansen, Johan-Sebastian"]
[Black "Matyukov, Petr"]
[WhiteFideId "1512668"]
[BlackFideId "4103688"]
[WhiteElo "2531"]
[BlackElo "2278"]
[Result "1-0"]
[Round "3"]
[TimeControl "180+2"]
[Date "2023.06.20"]
[WhiteClock "0:01:25"]
[BlackClock "0:00:02"]
[Board "188"]

1. e4 {[%clk 0:03:00]}  c5 {[%clk 0:02:59]} 2. Nf3 {[%clk 0:02:59]}  Nc6 {[%clk 0:02:59]} 3. b4 {[%clk 0:02:58]}  Nxb4 {[%clk 0:02:45]} 4. c3 {[%clk 0:02:57]}  Nc6 {[%clk 0:02:45]} 5. d4 {[%clk 0:02:56]}  cxd4 {[%clk 0:02:38]} 6. cxd4 {[%clk 0:02:53]}  d5 {[%clk 0:02:21]} 7. exd5 {[%clk 0:02:54]}  Qxd5 {[%clk 0:02:18]} 8. Nc3 {[%clk 0:02:54]}  Qd8 {[%clk 0:02:01]} 9. d5 {[%clk 0:02:53]}  Nb8 {[%clk 0:01:58]} 10. Bf4 {[%clk 0:02:28]}  Bd7 {[%clk 0:01:38]} 11. Rb1 {[%clk 0:02:21]}  b6 {[%clk 0:01:30]} 12. Nb5 {[%clk 0:02:20]}  Bxb5 {[%clk 0:01:26]} 13. Bxb5+ {[%clk 0:02:18]}  Nd7 {[%clk 0:01:27]} 14. Ne5 {[%clk 0:02:15]}  Nf6 {[%clk 0:01:27]} 15. Bg5 {[%clk 0:02:00]}  Qc7 {[%clk 0:00:50]} 16. Bxf6 {[%clk 0:01:57]}  exf6 {[%clk 0:00:32]} 17. Nxd7 {[%clk 0:01:55]}  Bd6 {[%clk 0:00:18]} 18. Nxb6+ {[%clk 0:01:48]}  Ke7 {[%clk 0:00:18]} 19. Qe2+ {[%clk 0:01:43]}  Be5 {[%clk 0:00:14]} 20. Nxa8 {[%clk 0:01:35]}  Rxa8 {[%clk 0:00:12]} 21. O-O {[%clk 0:01:33]}  Kf8 {[%clk 0:00:11]} 22. Rbe1 {[%clk 0:01:30]}  Rd8 {[%clk 0:00:10]} 23. f4 {[%clk 0:01:29]}  Bd4+ {[%clk 0:00:03]} 24. Kh1 {[%clk 0:01:29]}  Qc5 {[%clk 0:00:02]} 25. Qe8+ {[%clk 0:01:25]} 1-0


[Site "https://www.chess.com"]

[Event "Titled Tuesday Blitz June 20 Early 2023"]
[White "Ardila, Oscar Humberto"]
[Black "carokannlover213"]
[WhiteFideId "4404742"]
[WhiteElo "1912"]
[BlackElo "2733"]
[Result "1-0"]
[Round "3"]
[TimeControl "180+2"]
[Date "2023.06.20"]
[WhiteClock "0:00:46"]
[BlackClock "0:00:00"]
[Board "190"]

1. d4 {[%clk 0:03:00]}  e6 {[%clk 0:03:00]} 2. c4 {[%clk 0:03:00]}  Nf6 {[%clk 0:03:00]} 3. Nc3 {[%clk 0:03:00]}  d5 {[%clk 0:03:00]} 4. Bg5 {[%clk 0:02:59]}  dxc4 {[%clk 0:02:59]} 5. Qa4+ {[%clk 0:02:55]}  Nbd7 {[%clk 0:02:59]} 6. Qxc4 {[%clk 0:02:48]}  a6 {[%clk 0:02:59]} 7. e3 {[%clk 0:02:47]}  b5 {[%clk 0:02:54]} 8. Qb3 {[%clk 0:02:42]}  Bb7 {[%clk 0:02:54]} 9. Nf3 {[%clk 0:02:42]}  Be7 {[%clk 0:02:51]} 10. Be2 {[%clk 0:02:41]}  O-O {[%clk 0:02:50]} 11. O-O {[%clk 0:02:41]}  c5 {[%clk 0:02:49]} 12. Rfd1 {[%clk 0:02:32]}  c4 {[%clk 0:02:43]} 13. Qc2 {[%clk 0:02:31]}  Nd5 {[%clk 0:02:42]} 14. Bxe7 {[%clk 0:02:27]}  Qxe7 {[%clk 0:02:36]} 15. a4 {[%clk 0:02:11]}  Bc6 {[%clk 0:02:14]} 16. e4 {[%clk 0:01:52]}  Nxc3 {[%clk 0:01:20]} 17. bxc3 {[%clk 0:01:49]}  Nf6 {[%clk 0:00:59]} 18. Nd2 {[%clk 0:01:39]}  e5 {[%clk 0:00:58]} 19. d5 {[%clk 0:01:39]}  Bd7 {[%clk 0:00:57]} 20. Nf1 {[%clk 0:01:32]}  Ne8 {[%clk 0:00:54]} 21. Ng3 {[%clk 0:01:32]}  Nd6 {[%clk 0:00:53]} 22. Qd2 {[%clk 0:01:25]}  g6 {[%clk 0:00:52]} 23. Qh6 {[%clk 0:01:22]}  f6 {[%clk 0:00:51]} 24. h4 {[%clk 0:01:20]}  Kh8 {[%clk 0:00:47]} 25. Rf1 {[%clk 0:00:58]}  bxa4 {[%clk 0:00:34]} 26. Qe3 {[%clk 0:00:57]}  f5 {[%clk 0:00:26]} 27. exf5 {[%clk 0:00:57]}  gxf5 {[%clk 0:00:27]} 28. Qc5 {[%clk 0:00:47]}  Rfe8 {[%clk 0:00:00]} 29. Rfb1 {[%clk 0:00:46]} 1-0


[Site "https://www.chess.com"]

[Event "Titled Tuesday Blitz June 20 Early 2023"]
[White "Danielyan, Vahe"]
[Black "Georg, Heinz"]
[WhiteFideId "13304828"]
[BlackFideId "4607295"]
[WhiteElo "2423"]
[BlackElo "2296"]
[Result "1-0"]
[Round "3"]
[TimeControl "180+2"]
[Date "2023.06.20"]
[WhiteClock "0:00:57"]
[BlackClock "0:00:00"]
[Board "191"]

1. d4 {[%clk 0:03:00]}  f5 {[%clk 0:02:57]} 2. g4 {[%clk 0:02:57]}  d5 {[%clk 0:02:54]} 3. g5 {[%clk 0:02:56]}  c5 {[%clk 0:02:48]} 4. c3 {[%clk 0:02:54]}  e6 {[%clk 0:02:47]} 5. Nf3 {[%clk 0:02:52]}  Nc6 {[%clk 0:02:46]} 6. Bg2 {[%clk 0:02:52]}  Be7 {[%clk 0:02:42]} 7. h4 {[%clk 0:02:47]}  b6 {[%clk 0:02:36]} 8. Nbd2 {[%clk 0:02:44]}  cxd4 {[%clk 0:02:31]} 9. cxd4 {[%clk 0:02:45]}  Bd7 {[%clk 0:02:18]} 10. Nb3 {[%clk 0:02:36]}  Qc7 {[%clk 0:02:07]} 11. Be3 {[%clk 0:02:25]}  Bb4+ {[%clk 0:01:55]} 12. Bd2 {[%clk 0:02:12]}  Nge7 {[%clk 0:01:36]} 13. Rc1 {[%clk 0:02:10]}  Bxd2+ {[%clk 0:01:29]} 14. Qxd2 {[%clk 0:02:10]}  O-O {[%clk 0:01:27]} 15. Ne5 {[%clk 0:02:05]}  Rac8 {[%clk 0:01:25]} 16. O-O {[%clk 0:02:04]}  Qd6 {[%clk 0:01:22]} 17. f4 {[%clk 0:01:54]}  Rc7 {[%clk 0:01:11]} 18. Rc3 {[%clk 0:01:46]}  Rfc8 {[%clk 0:01:03]} 19. Rfc1 {[%clk 0:01:42]}  a5 {[%clk 0:00:54]} 20. e3 {[%clk 0:01:24]}  Be8 {[%clk 0:00:46]} 21. Bf1 {[%clk 0:01:22]}  Nxe5 {[%clk 0:00:33]} 22. fxe5 {[%clk 0:01:23]}  Qd8 {[%clk 0:00:32]} 23. Rxc7 {[%clk 0:01:16]}  Rxc7 {[%clk 0:00:32]} 24. Rxc7 {[%clk 0:01:14]}  Qxc7 {[%clk 0:00:31]} 25. Qc1 {[%clk 0:01:12]}  Qxc1 {[%clk 0:00:25]} 26. Nxc1 {[%clk 0:01:13]}  Nc8 {[%clk 0:00:20]} 27. a3 {[%clk 0:01:03]}  g6 {[%clk 0:00:17]} 28. Kf2 {[%clk 0:01:01]}  Na7 {[%clk 0:00:16]} 29. Ke1 {[%clk 0:01:00]}  Bb5 {[%clk 0:00:15]} 30. Bg2 {[%clk 0:00:59]}  Kf8 {[%clk 0:00:13]} 31. Kd2 {[%clk 0:01:00]}  Ke7 {[%clk 0:00:13]} 32. Na2 {[%clk 0:01:00]}  Bc4 {[%clk 0:00:08]} 33. Nc3 {[%clk 0:01:01]}  Kd7 {[%clk 0:00:07]} 34. Bf3 {[%clk 0:00:59]}  Kc6 {[%clk 0:00:06]} 35. h5 {[%clk 0:00:59]}  b5 {[%clk 0:00:06]} 36. h6 {[%clk 0:00:59]}  b4 {[%clk 0:00:05]} 37. axb4 {[%clk 0:00:59]}  axb4 {[%clk 0:00:05]} 38. Nd1 {[%clk 0:01:00]}  Nb5 {[%clk 0:00:00]} 39. Bh5 {[%clk 0:00:57]} 1-0


[Site "https://www.chess.com"]

[Event "Titled Tuesday Blitz June 20 Early 2023"]
[White "Theytookourjobs"]
[Black "Gritsenko, Nikolai"]
[BlackFideId "14112493"]
[WhiteElo "2296"]
[BlackElo "2389"]
[Result "1-0"]
[Round "3"]
[TimeControl "180+2"]
[Date "2023.06.20"]
[WhiteClock "0:00:17"]
[BlackClock "0:00:00"]
[Board "192"]

1. d4 {[%clk 0:03:00]}  d5 {[%clk 0:02:59]} 2. Bf4 {[%clk 0:03:00]}  c6 {[%clk 0:02:57]} 3. e3 {[%clk 0:03:00]}  Qb6 {[%clk 0:02:57]} 4. b3 {[%clk 0:03:00]}  Bf5 {[%clk 0:02:57]} 5. Bd3 {[%clk 0:03:00]}  Bxd3 {[%clk 0:02:56]} 6. Qxd3 {[%clk 0:02:59]}  e6 {[%clk 0:02:57]} 7. Nd2 {[%clk 0:02:59]}  Nf6 {[%clk 0:02:56]} 8. Ngf3 {[%clk 0:02:59]}  Nh5 {[%clk 0:02:55]} 9. Bg5 {[%clk 0:02:58]}  h6 {[%clk 0:02:54]} 10. Bh4 {[%clk 0:02:59]}  g5 {[%clk 0:02:52]} 11. Bg3 {[%clk 0:02:54]}  Nd7 {[%clk 0:02:52]} 12. c4 {[%clk 0:02:47]}  Nxg3 {[%clk 0:02:46]} 13. hxg3 {[%clk 0:02:46]}  Bg7 {[%clk 0:02:46]} 14. c5 {[%clk 0:02:39]}  Qa5 {[%clk 0:02:24]} 15. Qc2 {[%clk 0:02:05]}  Nxc5 {[%clk 0:02:16]} 16. b4 {[%clk 0:01:53]}  Qxb4 {[%clk 0:02:08]} 17. Rb1 {[%clk 0:01:53]}  Qa5 {[%clk 0:01:44]} 18. Qxc5 {[%clk 0:01:53]}  Qxc5 {[%clk 0:01:43]} 19. dxc5 {[%clk 0:01:54]}  O-O-O {[%clk 0:01:37]} 20. Ke2 {[%clk 0:01:49]}  f5 {[%clk 0:01:26]} 21. Nb3 {[%clk 0:01:44]}  e5 {[%clk 0:01:24]} 22. Rhd1 {[%clk 0:01:41]}  Bf6 {[%clk 0:01:20]} 23. a4 {[%clk 0:01:33]}  h5 {[%clk 0:01:14]} 24. a5 {[%clk 0:01:33]}  a6 {[%clk 0:01:12]} 25. Ne1 {[%clk 0:01:23]}  h4 {[%clk 0:00:57]} 26. gxh4 {[%clk 0:01:22]}  Rxh4 {[%clk 0:00:56]} 27. Nf3 {[%clk 0:01:16]}  Rb4 {[%clk 0:00:53]} 28. Nbd2 {[%clk 0:01:14]}  Ra4 {[%clk 0:00:51]} 29. Ra1 {[%clk 0:01:13]}  Rxa1 {[%clk 0:00:51]} 30. Rxa1 {[%clk 0:01:13]}  e4 {[%clk 0:00:51]} 31. Nd4 {[%clk 0:01:13]}  Bxd4 {[%clk 0:00:47]} 32. exd4 {[%clk 0:01:13]}  Rh8 {[%clk 0:00:47]} 33. f3 {[%clk 0:00:59]}  Rh2 {[%clk 0:00:36]} 34. Kf2 {[%clk 0:00:58]}  Rh7 {[%clk 0:00:24]} 35. fxe4 {[%clk 0:00:42]}  dxe4 {[%clk 0:00:23]} 36. Rg1 {[%clk 0:00:25]}  Kd7 {[%clk 0:00:18]} 37. g4 {[%clk 0:00:25]}  Rh2+ {[%clk 0:00:17]} 38. Rg2 {[%clk 0:00:25]}  e3+ {[%clk 0:00:17]} 39. Kxe3 {[%clk 0:00:19]}  Rxg2 {[%clk 0:00:17]} 40. gxf5 {[%clk 0:00:19]}  Ke7 {[%clk 0:00:09]} 41. Ne4 {[%clk 0:00:17]}  g4 {[%clk 0:00:07]} 42. Nd6 {[%clk 0:00:17]}  Rb2 {[%clk 0:00:07]} 43. Kf4 {[%clk 0:00:16]}  Rb4 {[%clk 0:00:03]} 44. Kxg4 {[%clk 0:00:16]}  Rxd4+ {[%clk 0:00:03]} 45. Kg5 {[%clk 0:00:17]}  Rd5 {[%clk 0:00:00]} 46. Kg6 {[%clk 0:00:17]} 1-0


[Site "https://www.chess.com"]

[Event "Titled Tuesday Blitz June 20 Early 2023"]
[White "Idani, Pouya"]
[Black "Modric, Nesa"]
[WhiteFideId "12510130"]
[BlackFideId "922579"]
[WhiteElo "2574"]
[BlackElo "2167"]
[Result "1-0"]
[Round "3"]
[TimeControl "180+2"]
[Date "2023.06.20"]
[WhiteClock "0:00:57"]
[BlackClock "0:00:06"]
[Board "193"]

1. e4 {[%clk 0:03:00]}  d5 {[%clk 0:02:59]} 2. exd5 {[%clk 0:03:00]}  Qxd5 {[%clk 0:02:56]} 3. Nc3 {[%clk 0:03:00]}  Qa5 {[%clk 0:02:51]} 4. d4 {[%clk 0:03:00]}  c6 {[%clk 0:02:51]} 5. Bc4 {[%clk 0:03:00]}  Bf5 {[%clk 0:02:49]} 6. Bd2 {[%clk 0:02:55]}  e6 {[%clk 0:02:48]} 7. Nf3 {[%clk 0:02:51]}  Nf6 {[%clk 0:02:47]} 8. Qe2 {[%clk 0:02:51]}  Bb4 {[%clk 0:02:45]} 9. a3 {[%clk 0:02:50]}  Nbd7 {[%clk 0:02:43]} 10. O-O {[%clk 0:02:45]}  Bxc3 {[%clk 0:02:42]} 11. Bxc3 {[%clk 0:02:46]}  Qc7 {[%clk 0:02:43]} 12. Ne5 {[%clk 0:02:43]}  O-O {[%clk 0:02:41]} 13. h3 {[%clk 0:02:43]}  Nxe5 {[%clk 0:02:26]} 14. dxe5 {[%clk 0:02:43]}  Nd5 {[%clk 0:02:16]} 15. g4 {[%clk 0:02:25]}  Nxc3 {[%clk 0:02:11]} 16. bxc3 {[%clk 0:02:25]}  Bg6 {[%clk 0:02:10]} 17. f4 {[%clk 0:02:25]}  Qb6+ {[%clk 0:02:00]} 18. Kh2 {[%clk 0:01:58]}  h6 {[%clk 0:01:53]} 19. f5 {[%clk 0:01:58]}  exf5 {[%clk 0:01:49]} 20. gxf5 {[%clk 0:01:59]}  Bh7 {[%clk 0:01:45]} 21. f6 {[%clk 0:01:42]}  g6 {[%clk 0:01:20]} 22. Rad1 {[%clk 0:01:25]}  Rad8 {[%clk 0:01:16]} 23. Rxd8 {[%clk 0:01:08]}  Qxd8 {[%clk 0:01:14]} 24. Qe3 {[%clk 0:01:01]}  g5 {[%clk 0:00:48]} 25. h4 {[%clk 0:01:01]}  Qb6 {[%clk 0:00:36]} 26. Qg3 {[%clk 0:01:00]}  Qc5 {[%clk 0:00:23]} 27. Bb3 {[%clk 0:00:57]}  Re8 {[%clk 0:00:16]} 28. e6 {[%clk 0:00:56]}  Rxe6 {[%clk 0:00:09]} 29. Bxe6 {[%clk 0:00:56]}  fxe6 {[%clk 0:00:10]} 30. f7+ {[%clk 0:00:56]}  Kf8 {[%clk 0:00:09]} 31. Qb8+ {[%clk 0:00:56]}  Kg7 {[%clk 0:00:06]} 32. f8=Q+ {[%clk 0:00:57]} 1-0


[Site "https://www.chess.com"]

[Event "Titled Tuesday Blitz June 20 Early 2023"]
[White "Pastar, Slaven"]
[Black "Ziatdinov, Raset"]
[WhiteFideId "14402718"]
[BlackFideId "2015323"]
[WhiteElo "2219"]
[BlackElo "2220"]
[Result "1-0"]
[Round "3"]
[TimeControl "180+2"]
[Date "2023.06.20"]
[WhiteClock "0:00:19"]
[BlackClock "0:00:13"]
[Board "195"]

1. b3 {[%clk 0:03:00]}  e5 {[%clk 0:02:59]} 2. Bb2 {[%clk 0:03:00]}  Nc6 {[%clk 0:02:59]} 3. Nf3 {[%clk 0:03:01]}  e4 {[%clk 0:02:59]} 4. Nd4 {[%clk 0:03:01]}  Nf6 {[%clk 0:02:58]} 5. e3 {[%clk 0:03:01]}  Bc5 {[%clk 0:02:57]} 6. Nxc6 {[%clk 0:03:00]}  dxc6 {[%clk 0:02:56]} 7. d4 {[%clk 0:03:01]}  Bb4+ {[%clk 0:02:55]} 8. c3 {[%clk 0:03:00]}  Bd6 {[%clk 0:02:52]} 9. c4 {[%clk 0:03:00]}  Ng4 {[%clk 0:02:35]} 10. Be2 {[%clk 0:02:56]}  Qh4 {[%clk 0:02:32]} 11. g3 {[%clk 0:02:53]}  Qh3 {[%clk 0:02:32]} 12. Bf1 {[%clk 0:02:44]}  Qh6 {[%clk 0:02:31]} 13. Nc3 {[%clk 0:02:07]}  Bf5 {[%clk 0:02:22]} 14. Bg2 {[%clk 0:01:49]}  O-O {[%clk 0:02:18]} 15. Qc2 {[%clk 0:01:33]}  Nxe3 {[%clk 0:01:06]} 16. fxe3 {[%clk 0:01:25]}  Qxe3+ {[%clk 0:01:05]} 17. Qe2 {[%clk 0:01:24]}  Qxd4 {[%clk 0:01:05]} 18. Nd5 {[%clk 0:01:06]}  Qc5 {[%clk 0:00:38]} 19. b4 {[%clk 0:00:58]}  Bxg3+ {[%clk 0:00:19]} 20. hxg3 {[%clk 0:00:55]}  Qd6 {[%clk 0:00:20]} 21. Ne3 {[%clk 0:00:30]}  Qxb4+ {[%clk 0:00:19]} 22. Qd2 {[%clk 0:00:28]}  Qxd2+ {[%clk 0:00:18]} 23. Kxd2 {[%clk 0:00:28]}  Bg6 {[%clk 0:00:18]} 24. Ke2 {[%clk 0:00:25]}  f5 {[%clk 0:00:18]} 25. Rad1 {[%clk 0:00:23]}  b5 {[%clk 0:00:17]} 26. Rd7 {[%clk 0:00:20]}  Rac8 {[%clk 0:00:13]} 27. Rxg7+ {[%clk 0:00:19]} 1-0


[Site "https://www.chess.com"]

[Event "Titled Tuesday Blitz June 20 Early 2023"]
[White "Calderin Gonzalez, Roberto"]
[Black "Adla, Diego"]
[WhiteFideId "5102979"]
[BlackFideId "100072"]
[WhiteElo "2280"]
[BlackElo "2377"]
[Result "0-1"]
[Round "3"]
[TimeControl "180+2"]
[Date "2023.06.20"]
[WhiteClock "0:00:39"]
[BlackClock "0:02:04"]
[Board "196"]

1. e4 {[%clk 0:03:00]}  e5 {[%clk 0:02:57]} 2. Nc3 {[%clk 0:03:00]}  Nf6 {[%clk 0:02:56]} 3. f4 {[%clk 0:02:58]}  d5 {[%clk 0:02:55]} 4. fxe5 {[%clk 0:02:58]}  Nxe4 {[%clk 0:02:56]} 5. Qf3 {[%clk 0:02:58]}  Nc6 {[%clk 0:02:56]} 6. Bb5 {[%clk 0:02:52]}  Nxc3 {[%clk 0:02:56]} 7. dxc3 {[%clk 0:02:52]}  Qh4+ {[%clk 0:02:56]} 8. g3 {[%clk 0:02:52]}  Qe4+ {[%clk 0:02:57]} 9. Qxe4 {[%clk 0:02:52]}  dxe4 {[%clk 0:02:57]} 10. Bf4 {[%clk 0:02:50]}  Bd7 {[%clk 0:02:56]} 11. O-O-O {[%clk 0:02:50]}  a6 {[%clk 0:02:52]} 12. Bc4 {[%clk 0:02:43]}  h6 {[%clk 0:02:51]} 13. e6 {[%clk 0:02:28]}  fxe6 {[%clk 0:02:48]} 14. Bxc7 {[%clk 0:02:27]}  Bc5 {[%clk 0:02:47]} 15. Ne2 {[%clk 0:02:23]}  b5 {[%clk 0:02:47]} 16. Bb3 {[%clk 0:02:22]}  Rc8 {[%clk 0:02:42]} 17. Bd6 {[%clk 0:02:14]}  Be3+ {[%clk 0:02:42]} 18. Kb1 {[%clk 0:02:14]}  Na5 {[%clk 0:02:42]} 19. Nd4 {[%clk 0:01:49]}  Nc4 {[%clk 0:02:38]} 20. Rhe1 {[%clk 0:01:43]}  Bf2 {[%clk 0:02:19]} 21. Rxe4 {[%clk 0:01:37]}  Nxd6 {[%clk 0:02:19]} 22. Re2 {[%clk 0:01:25]}  Bxd4 {[%clk 0:02:18]} 23. Rxd4 {[%clk 0:01:25]}  Nc4 {[%clk 0:02:17]} 24. Rf2 {[%clk 0:01:17]}  Ke7 {[%clk 0:02:13]} 25. Rdf4 {[%clk 0:01:14]}  Rhf8 {[%clk 0:02:12]} 26. Bxc4 {[%clk 0:01:07]}  Rxf4 {[%clk 0:02:11]} 27. Rxf4 {[%clk 0:01:06]}  Rxc4 {[%clk 0:02:12]} 28. Rf1 {[%clk 0:01:05]}  Rc5 {[%clk 0:02:06]} 29. Kc1 {[%clk 0:01:04]}  Rf5 {[%clk 0:02:05]} 30. Rd1 {[%clk 0:00:39]}  Bc6 {[%clk 0:02:04]} 0-1


[Site "https://www.chess.com"]